bitfinex-derivatives/quotes_SOLF0:USTF0_20241222
["timestamp","ask_amount","ask_price","bid_price","bid_amount"]
[1734847211579,2.7681,180.75,180.71,3.44]
[1734847211779,1.6078,180.8,180.71,3.44]
[1734847211978,2.768,180.75,180.71,3.44]
[1734847212177,1.6078,180.8,180.71,3.44]
[1734847212477,2.768,180.75,180.71,3.44]
[1734847213675,1.6078,180.8,180.71,3.44]
[1734847214279,5.0478,180.8,180.69,3.44]
[1734847214475,5.0478,180.8,180.68,3.44]
[1734847214680,14.82979169,180.78,180.68,3.44]
[1734847214981,2.7684,180.73,180.68,3.44]
[1734847216686,2.7681,180.75,180.68,3.44]
[1734847216987,5.0478,180.8,180.69,2.7688]
[1734847217187,2.7681,180.75,180.69,2.7688]
[1734847218387,5.0478,180.8,180.68,3.44]
[1734847219186,2.7678,180.77,180.72,2.7684]
[1734847219389,2.7678,180.77,180.68,3.44]
[1734847219683,2.7683,180.73,180.69,2.7689]
[1734847219988,5.0478,180.8,180.68,3.44]
[1734847220794,2.7678,180.77,180.68,3.44]
[1734847220993,5.0478,180.8,180.68,3.44]
[1734847221392,2.7684,180.73,180.68,3.44]
[1734847221988,14.82979169,180.78,180.6,5.44765076]
[1734847222294,1.00040649,180.77,180.6,20.27744245]
[1734847222493,1.00040649,180.77,180.61,3.44]
[1734847222686,2.7685,180.73,180.65,2.7694]
[1734847222891,2.7685,180.73,180.66,3.44]
[1734847223092,2.7685,180.73,180.67,3.44]
[1734847223689,2.7682,180.74,180.67,3.44]
[1734847223994,28.05231609,180.8,180.67,3.44]
[1734847224192,5.0478,180.8,180.72,2.7683]
[1734847224391,1.6078,180.8,180.72,3.44]
[1734847224691,1.6078,180.8,180.73,2.7682]
[1734847225696,1.6078,180.8,180.72,3.44]
[1734847226197,2.7678,180.77,180.72,3.44]
[1734847227390,2.7675,180.78,180.72,3.44]
[1734847228499,2.7675,180.78,180.73,2.7683]
[1734847228799,1.6078,180.8,180.73,2.7683]
[1734847228999,2.7677,180.77,180.73,2.7683]
[1734847229400,1.6078,180.8,180.72,3.44]
[1734847229595,2.7681,180.75,180.7,2.7688]
[1734847231500,1.6078,180.8,180.69,3.42]
[1734847231799,2.7678,180.77,180.72,2.7683]
[1734847234297,1.6078,180.8,180.69,3.42]
[1734847234500,1.6078,180.8,180.68,6.7859]
[1734847235093,1.6078,180.8,180.68,6.1348]
[1734847235094,2.7684,180.73,180.68,6.1348]
[1734847235294,1.6078,180.8,180.69,3.42]
[1734847235499,14.82979169,180.75,180.62,62.58495433]
[1734847235700,14.82979169,180.72,180.62,59.21615433]
[1734847235902,14.82979169,180.69,180.59,59.21615433]
[1734847236093,18.24979169,180.69,180.59,59.21615433]
[1734847236298,2.7698,180.63,180.59,59.21615433]
[1734847236498,3.42,180.69,180.59,59.21615433]
[1734847236798,2.7695,180.66,180.59,61.98645433]
[1734847236999,3.42,180.69,180.59,61.98645433]
[1734847237204,3.42,180.69,180.59,2.7703]
[1734847237398,2.7695,180.66,180.59,2.7703]
[1734847238601,2.7695,180.66,180.59,6.1903]
[1734847239407,3.42,180.69,180.59,6.1903]
[1734847239702,4.9328,180.71,180.59,3.42]
[1734847239902,4.9328,180.71,180.6,14.82979169]
[1734847240102,2.7689,180.69,180.6,14.82979169]
[1734847240310,4.9328,180.71,180.62,2.77]
[1734847241904,4.9328,180.71,180.61,2.7701]
[1734847242209,4.9328,180.71,180.59,3.42]
[1734847242606,2.7697,180.64,180.55,2.0961367]
[1734847242906,14.82979169,180.69,180.55,2.0961367]
[1734847242907,3.42,180.67,180.56,3.42]
[1734847243107,2.7703,180.6,180.56,3.42]
[1734847244006,2.7701,180.62,180.56,3.42]
[1734847244308,2.7701,180.62,180.56,6.1909]
[1734847244813,2.7699,180.63,180.57,2.7708]
[1734847245204,3.42,180.67,180.56,3.42]
[1734847245404,2.77,180.62,180.56,6.1909]
[1734847250009,3.42,180.67,180.56,6.1909]
[1734847250310,2.7702,180.61,180.56,6.1909]
[1734847254007,2.7702,180.61,180.56,3.42]
[1734847254312,2.7702,180.61,180.57,2.7707]
[1734847258510,2.77,180.62,180.58,2.7705]
[1734847258715,14.82979169,180.69,180.56,3.42]
[1734847258908,18.22979169,180.69,180.56,3.42]
[1734847259514,2.77,180.63,180.58,2.7706]
[1734847259914,18.22979169,180.69,180.58,2.7706]
[1734847260113,9.27759939,180.68,180.58,2.7706]
[1734847260311,9.27759939,180.68,180.56,12.69759939]
[1734847260513,9.27759939,180.68,180.57,2.7707]
[1734847262419,4.9328,180.71,180.56,3.42]
[1734847262617,4.9328,180.71,180.6,9.27759939]
[1734847262819,4.9328,180.71,180.61,3.4]
[1734847263015,9.27759939,180.7,180.61,3.4]
[1734847263420,2.7697,180.64,180.61,3.4]
[1734847263621,9.27759939,180.7,180.61,3.4]
[1734847264418,2.7692,180.68,180.62,2.77]
[1734847264714,4.9328,180.71,180.61,3.4]
[1734847265014,4.9328,180.71,180.61,6.7448]
[1734847265216,2.7688,180.7,180.64,2.7697]
[1734847265625,2.7688,180.7,180.65,2.7695]
[1734847269121,9.27759939,180.73,180.64,3.4]
[1734847269427,9.27759939,180.73,180.55,1.7228]
[1734847269428,9.27759939,180.73,180.62,3.4]
[1734847269625,5.1714,180.72,180.61,3.4]
[1734847269829,2.7694,180.67,180.61,6.1701]
[1734847270625,2.7694,180.67,180.62,3.4]
[1734847271327,2.7694,180.67,180.62,6.1699]
[1734847272127,32.28211548,180.76,180.67,2.7692]
[1734847272330,33.90401548,180.76,180.63,3.458]
[1734847272526,9.27759939,180.73,180.63,3.458]
[1734847272727,2.7691,180.69,180.63,3.458]
[1734847273230,2.7691,180.69,180.64,2.7696]
[1734847274128,9.27759939,180.73,180.66,2.7694]
[1734847274629,2.7687,180.71,180.66,2.7694]
[1734847276333,2.7687,180.71,180.67,3.4]
[1734847276632,2.769,180.69,180.65,2.7694]
[1734847276836,9.27759939,180.73,180.64,3.4]
[1734847277734,2.7689,180.7,180.65,2.7695]
[1734847278235,2.7689,180.7,180.64,3.4]
[1734847278236,9.27759939,180.7,180.64,3.4]
[1734847278430,9.27759939,180.7,180.62,3.4]
[1734847278837,2.7695,180.66,180.62,3.4]
[1734847279329,9.27759939,180.73,180.62,3.4]
[1734847279531,9.27759939,180.73,180.63,9.27759939]
[1734847279736,26.38681609,180.77,180.63,9.27759939]
[1734847279932,2.7683,180.74,180.64,4.9833]
[1734847280332,2.7683,180.74,180.66,9.27759939]
[1734847280532,2.7683,180.74,180.67,3.4]
[1734847280732,10.96239939,180.77,180.67,3.4]
[1734847280926,9.27759939,180.74,180.67,3.4]
[1734847281634,1.6556,180.73,180.63,3.4]
[1734847282535,3.3048,180.73,180.63,3.4]
[1734847282736,3.3048,180.73,180.63,6.1697]
[1734847283239,2.7691,180.69,180.63,6.1697]
[1734847284236,3.3048,180.73,180.63,6.1697]
[1734847284435,2.7691,180.68,180.63,6.1697]
[1734847286336,2.7697,180.65,180.6,2.7703]
[1734847286535,14.83702685,180.71,180.6,2.7703]
[1734847286737,1.6469,180.7,180.6,2.7703]
[1734847286940,2.7696,180.65,180.6,2.7703]
[1734847287839,2.7696,180.65,180.59,3.4]
[1734847288039,2.7696,180.65,180.61,2.7701]
[1734847290841,1.6469,180.7,180.61,2.7701]
[1734847291038,2.7694,180.66,180.61,2.7701]
[1734847291344,14.83702685,180.68,180.57,3.4]
[1734847291932,2.77,180.63,180.57,6.1707]
[1734847292137,14.83702685,180.68,180.57,2.7707]
[1734847292338,14.83702685,180.68,180.56,3.4]
[1734847294742,14.83702685,180.68,180.55,3.4]
[1734847295141,2.7703,180.61,180.55,6.171]
[1734847296746,2.7703,180.6,180.55,6.171]
[1734847297245,2.7703,180.6,180.55,2.771]
[1734847297746,14.83702685,180.62,180.45,59.21615433]
[1734847297942,14.83702685,180.56,180.45,59.21615433]
[1734847298145,18.23702685,180.56,180.45,59.21615433]
[1734847298745,2.7714,180.53,180.45,59.21615433]
[1734847298946,18.23702685,180.56,180.45,59.21615433]
[1734847299244,1.6514,180.59,180.51,2.7716]
[1734847299842,4.422,180.59,180.52,2.7715]
[1734847300044,1.6514,180.59,180.52,6.1715]
[1734847301542,2.7706,180.58,180.52,6.1715]
[1734847305943,1.6514,180.59,180.54,2.7712]
[1734847306145,3.3899,180.61,180.54,2.7712]
[1734847307549,2.7705,180.59,180.54,2.7712]
[1734847308047,2.7696,180.65,180.52,3.4]
[1734847308240,5.0505,180.72,180.57,14.83702685]
[1734847308444,5.0505,180.72,180.6,14.83702685]
[1734847308647,5.0505,180.72,180.61,3.4668]
[1734847309049,1.6666,180.72,180.61,3.4668]
[1734847309246,1.6666,180.72,180.61,5.1554]
[1734847309441,4.4351,180.72,180.66,2.7694]
[1734847309653,4.4351,180.72,180.67,3.4]
[1734847310352,3.392,180.77,180.67,3.4]
[1734847310743,1.6696,180.77,180.67,3.4]
[1734847310942,3.15531005,180.8,180.67,3.4]
[1734847311352,3.15531005,180.8,180.69,14.83702685]
[1734847311549,3.15531005,180.8,180.7,3.3692]
[1734847312456,16.50662685,180.84,180.7,3.3692]
[1734847312654,1.6696,180.84,180.72,14.83702685]
[1734847312854,1.6696,180.84,180.73,3.4]
[1734847313556,1.6696,180.84,180.74,2.768]
[1734847314355,2.7671,180.81,180.75,2.768]
[1734847314559,16.50662685,180.84,180.7,3.3692]
[1734847314752,1.00011524,180.83,180.71,3.4]
[1734847315253,2.7677,180.77,180.72,3.4]
[1734847315856,2.7675,180.78,180.72,6.1685]
[1734847316658,19.90662685,180.84,180.72,3.4]
[1734847317953,2.7672,180.8,180.73,2.7682]
[1734847318258,14.83702685,180.81,180.65,14.83702685]
[1734847318455,14.83702685,180.81,180.66,3.4]
[1734847318651,2.7683,180.74,180.67,2.7692]
[1734847318958,14.83702685,180.78,180.67,2.7692]
[1734847319462,5.011,180.77,180.66,3.38]
[1734847319657,6.6121,180.77,180.66,3.38]
[1734847319860,2.7684,180.73,180.66,3.38]
[1734847320459,2.7682,180.74,180.66,3.38]
[1734847320963,2.7687,180.71,180.66,3.38]
[1734847321153,6.6121,180.77,180.66,3.38]
[1734847321871,1.00046557,180.76,180.66,3.38]
[1734847322268,6.6121,180.77,180.66,3.38]
[1734847322269,2.7688,180.71,180.66,3.38]
[1734847322471,6.6121,180.77,180.66,3.38]
[1734847322674,1.00048232,180.76,180.66,3.38]
[1734847322867,6.6121,180.77,180.66,3.38]
[1734847323168,1.6755,180.75,180.63,24.10002443]
[1734847323369,1.6755,180.75,180.64,3.38]
[1734847323770,2.7688,180.7,180.64,6.1497]
[1734847324068,24.10002443,180.68,180.51,3.38]
[1734847324271,24.10002443,180.65,180.51,3.38]
[1734847324573,5.1456,180.64,180.51,3.38]
[1734847324872,5.1456,180.64,180.53,2.7714]
[1734847325067,5.1456,180.64,180.51,3.38]
[1734847326172,2.7707,180.58,180.51,3.38]
[1734847326378,5.1456,180.64,180.51,27.48002443]
[1734847326773,2.7703,180.61,180.51,27.48002443]
[1734847327071,5.1456,180.64,180.52,2.7714]
[1734847327470,2.7705,180.59,180.52,2.7714]
[1734847328372,5.1456,180.64,180.52,2.7714]
[1734847328571,2.7707,180.58,180.52,3.38]
[1734847328972,5.1456,180.64,180.52,3.38]
[1734847330173,2.7704,180.6,180.53,2.7714]
[1734847330878,2.7705,180.59,180.53,2.7714]
[1734847331980,2.7705,180.59,180.52,6.1515]
[1734847332176,5.1456,180.64,180.49,3.4132]
[1734847332376,5.1456,180.64,180.5,6.1517]
[1734847333077,24.10002443,180.62,180.49,3.4132]
[1734847333384,24.10002443,180.62,180.48,3.38]
[1734847334380,2.7714,180.53,180.48,3.38]
[1734847334579,2.7714,180.53,180.47,3.38]
[1734847334776,2.772,180.5,180.47,3.38]
[1734847334979,2.772,180.5,180.45,3.38]
[1734847335975,2.7713,180.54,180.45,6.1525]
[1734847336279,3.3328,180.57,180.45,3.38]
[1734847336781,2.7714,180.53,180.46,2.7723]
[1734847336977,3.3328,180.57,180.46,2.7723]
[1734847337278,2.7718,180.51,180.45,3.38]
[1734847337680,3.3328,180.57,180.45,3.38]
[1734847338180,2.7713,180.54,180.45,3.38]
[1734847338382,3.3328,180.57,180.45,3.38]
[1734847339080,2.7718,180.51,180.45,3.38]
[1734847339979,3.3328,180.57,180.45,3.38]
[1734847341586,2.7719,180.5,180.45,3.38]
[1734847341786,3.3328,180.57,180.45,6.1525]
[1734847342187,3.3328,180.57,180.45,3.38]
[1734847342383,14.86378683,180.55,180.45,3.38]
[1734847342686,14.86378683,180.55,180.44,2.09732926]
[1734847342687,1.6548,180.54,180.44,2.09732926]
[1734847344286,1.6548,180.54,180.44,4.87002926]
[1734847345485,2.7719,180.5,180.44,4.87002926]
[1734847346386,2.772,180.49,180.44,4.87002926]
[1734847347193,2.7723,180.48,180.44,2.09732926]
[1734847347483,2.772,180.5,180.44,4.87002926]
[1734847347690,2.772,180.5,180.44,2.09732926]
[1734847347889,1.6548,180.54,180.44,2.09732926]
[1734847348284,2.7721,180.49,180.44,2.09732926]
[1734847350385,2.7722,180.48,180.43,2.7729]
[1734847350690,3.38,180.53,180.43,3.38]
[1734847350895,2.7723,180.48,180.43,3.38]
[1734847352591,2.7723,180.48,180.43,6.1529]
[1734847356294,3.38,180.53,180.4,60.8978]
[1734847356295,14.86378683,180.51,180.4,6.6978]
[1734847356489,1.7721,180.5,180.4,1.6555]
[1734847356793,1.7721,180.5,180.4,5.0355]
[1734847358095,1.7721,180.5,180.38,6.1535]
[1734847358389,1.7721,180.5,180.39,2.7735]
[1734847358596,1.7721,180.5,180.38,3.38]
[1734847360388,2.7726,180.45,180.4,2.7733]
[1734847360992,1.7721,180.5,180.36,14.86378683]
[1734847361294,2.7729,180.44,180.39,2.7735]
[1734847361496,1.7721,180.5,180.37,3.38]
[1734847362298,1.7721,180.5,180.38,6.1537]
[1734847362599,1.7721,180.5,180.38,3.38]
[1734847362898,2.7726,180.46,180.4,2.7733]
[1734847363096,1.7721,180.5,180.4,2.7733]
[1734847364096,1.7721,180.5,180.38,3.38]
[1734847364297,2.773,180.43,180.38,3.38]
[1734847365896,2.7736,180.39,180.34,6.0587]
[1734847366095,2.7736,180.39,180.35,3.38]
[1734847366300,1.5997,180.46,180.35,3.38]
[1734847366499,2.7737,180.38,180.35,3.38]
[1734847367297,2.7738,180.37,180.33,79.59326438]
[1734847367498,18.24378683,180.42,180.31,1.751]
[1734847367696,5.052,180.41,180.31,1.751]
[1734847368692,2.7742,180.35,180.31,1.751]
[1734847370596,14.86378683,180.32,180.19,92.02406976]
[1734847370794,14.86378683,180.28,180.19,92.02406976]
[1734847370997,3.38,180.27,180.19,92.02406976]
[1734847371698,3.38,180.27,180.18,153.41300209]
[1734847371699,3.38,180.27,180.16,59.21615433]
[1734847372604,2.7761,180.22,180.16,61.99305433]
[1734847372901,3.4996,180.31,180.18,14.86378683]
[1734847373096,6.8796,180.31,180.18,14.86378683]
[1734847373898,6.8796,180.31,180.19,3.38]
[1734847374407,2.7752,180.28,180.21,2.7763]
[1734847374602,2.7752,180.28,180.19,3.38]
[1734847374798,1.7282,180.34,180.19,3.38]
[1734847375103,2.7747,180.32,180.24,2.7757]
[1734847375303,1.7282,180.34,180.25,5.0446]
[1734847375906,2.7749,180.31,180.25,5.0446]
[1734847376505,3.3382,180.37,180.25,5.0446]
[1734847376707,3.38,180.36,180.25,5.0446]
[1734847377299,2.7746,180.33,180.26,2.7755]
[1734847377497,3.38,180.36,180.26,2.7755]
[1734847377697,2.7747,180.32,180.22,7.9061]
[1734847377897,16.53518683,180.35,180.22,1.7501]
[1734847378198,2.7747,180.32,180.22,1.7501]
[1734847378403,3.38,180.31,180.22,1.7501]
[1734847378808,2.7754,180.28,180.22,1.7501]
[1734847380605,3.38,180.31,180.22,1.7501]
[1734847380823,2.7758,180.24,180.19,1.7046]
[1734847381309,2.776,180.23,180.19,1.7046]
[1734847381611,3.38,180.26,180.17,2.09087424]
[1734847381809,2.7758,180.24,180.18,2.7767]
[1734847382004,3.38,180.26,180.17,2.09087424]
[1734847382407,1.6497,180.3,180.17,2.09087424]
[1734847382608,1.6902,180.34,180.17,16.95466107]
[1734847382813,1.6902,180.34,180.18,1.6045]
[1734847383013,1.6902,180.34,180.2,14.86378683]
[1734847383213,1.6902,180.34,180.21,6.757]
[1734847384413,2.7748,180.31,180.25,2.7757]
[1734847384616,2.7748,180.31,180.26,3.38]
[1734847384912,3.3884,180.35,180.26,3.38]
[1734847385107,1.6714,180.35,180.26,3.38]
[1734847385618,2.7742,180.35,180.27,2.7753]
[1734847385815,25.60638095,180.38,180.26,3.38]
[1734847386306,24.21160043,180.41,180.26,27.59160043]
[1734847386510,24.21160043,180.38,180.27,1.704]
[1734847386707,24.21160043,180.28,180.12,59.21615433]
[1734847386911,24.21160043,180.21,180.12,59.21615433]
[1734847387215,3.38,180.22,180.12,59.21615433]
[1734847387411,3.38,180.22,180.05,3.38]
[1734847387412,24.21160043,180.15,180.05,3.38]
[1734847387616,1.6734,180.14,180.05,3.38]
[1734847389517,1.6051,180.16,180.05,3.38]
[1734847389717,24.21160043,180.18,180.05,3.38]
[1734847390417,2.7772,180.15,180.05,3.38]
[1734847391013,24.21160043,180.18,180.07,2.7784]
[1734847392015,2.7771,180.16,180.08,2.7783]
[1734847392213,24.21160043,180.21,180.05,3.38]
[1734847393119,2.7769,180.17,180.1,2.778]
[1734847393316,2.7769,180.17,180.11,3.38]
[1734847393517,24.21160043,180.21,180.11,3.38]
[1734847394117,2.7767,180.19,180.12,2.7777]
[1734847394722,2.7764,180.21,180.14,2.7774]
[1734847394916,24.21160043,180.24,180.14,2.7774]
[1734847395517,2.7763,180.21,180.14,2.7774]
[1734847396420,2.7763,180.21,180.07,1.6846]
[1734847396421,24.21160043,180.21,180.11,3.38]
[1734847396625,24.21160043,180.18,180.11,3.38]
[1734847397322,2.777,180.17,180.11,3.38]
[1734847397619,24.21160043,180.21,180.11,3.38]
[1734847398231,24.21160043,180.24,180.11,3.38]
[1734847398734,24.21160043,180.24,180.12,1.635]
[1734847400729,24.21160043,180.21,180.13,3.38]
[1734847402028,2.7768,180.18,180.13,3.38]
[1734847402429,24.21160043,180.21,180.13,3.38]
[1734847403026,2.7765,180.2,180.14,2.7774]
[1734847404123,24.21160043,180.21,180.13,3.38]
[1734847404533,24.21160043,180.21,180.07,3.4456]
[1734847404831,24.21160043,180.21,180.08,3.38]
[1734847405031,2.7769,180.17,180.12,2.7776]
[1734847405234,24.21160043,180.21,180.07,3.4456]
[1734847405433,24.21160043,180.18,180.07,3.4456]
[1734847405634,24.21160043,180.18,180.07,4.5394]
[1734847405834,24.21160043,180.15,180.08,3.38]
[1734847406940,24.21160043,180.15,180.07,4.5394]
[1734847407137,24.21160043,180.15,180.08,3.38]
[1734847407538,2.7775,180.13,180.08,3.38]
[1734847409436,2.7775,180.13,180.07,2.7784]
[1734847409736,2.7775,180.13,180.07,6.1584]
[1734847409939,2.7775,180.13,180.07,2.7784]
[1734847410147,2.7775,180.13,180.08,3.38]
[1734847410443,2.7775,180.13,180.07,2.7784]
[1734847410636,2.7774,180.14,180.09,2.7781]
[1734847410839,3.3836,180.17,180.08,3.36]
[1734847412438,2.7771,180.16,180.1,2.7779]
[1734847414040,1.6372,180.17,180.13,2.7775]
[1734847414238,24.21160043,180.23,180.13,3.36]
[1734847414839,3.3785,180.25,180.13,3.36]
[1734847415745,2.7763,180.22,180.17,2.7769]
[1734847416443,2.776,180.24,180.18,6.1367]
[1734847416638,3.3785,180.25,180.18,6.1367]
[1734847417443,3.3785,180.25,180.18,3.36]
[1734847418044,2.7762,180.22,180.18,3.36]
[1734847418739,2.776,180.23,180.18,3.36]
[1734847419347,2.7767,180.19,180.13,2.7775]
[1734847419647,24.21160043,180.2,180.11,3.36]
[1734847420340,3.2425,180.22,180.11,3.36]
[1734847420942,3.2425,180.22,180.16,2.7771]
[1734847420943,2.7763,180.21,180.16,2.7771]
[1734847421146,1.6371,180.22,180.16,3.36]
[1734847422447,4.4133,180.22,180.17,2.7768]
[1734847422647,4.4133,180.22,180.17,6.1368]
[1734847424443,24.21160043,180.27,180.17,3.36]
[1734847425139,2.7758,180.25,180.2,2.7764]
[1734847425343,24.21160043,180.27,180.2,2.7764]
[1734847425852,2.7757,180.25,180.2,2.7764]
[1734847426050,24.21160043,180.27,180.17,3.36]
[1734847426248,24.21160043,180.27,180.17,6.1369]
[1734847426749,24.21160043,180.27,180.17,2.7769]
[1734847426951,24.21160043,180.27,180.18,3.36]
[1734847427552,2.7761,180.23,180.18,3.36]
[1734847428147,2.7761,180.23,180.18,6.1367]
[1734847428348,2.7757,180.26,180.18,3.36]
[1734847428554,24.21160043,180.27,180.19,3.36]
[1734847428949,2.7757,180.26,180.21,2.7763]
[1734847429352,2.7757,180.26,180.19,3.36]
[1734847429554,2.7757,180.26,180.2,2.7764]
[1734847429754,2.7757,180.25,180.2,2.7764]
[1734847431751,26.98710043,180.27,180.22,2.7761]
[1734847432653,26.98710043,180.27,180.19,3.36]
[1734847432654,3.5029,180.29,180.19,3.36]
[1734847433155,3.5029,180.29,180.25,2.7756]
[1734847433348,3.5029,180.29,180.26,3.36]
[1734847433749,3.5029,180.29,180.26,6.1354]
[1734847433953,1.7677,180.29,180.26,6.1354]
[1734847435154,1.7677,180.29,180.24,3.36]
[1734847435450,1.7677,180.29,180.23,3.36]
[1734847435856,2.7754,180.27,180.23,3.36]
[1734847437458,2.7753,180.28,180.23,3.36]
[1734847437655,1.7677,180.29,180.23,3.36]
[1734847438754,24.21160043,180.27,180.19,2.7766]
[1734847438956,24.21160043,180.27,180.14,3.326]
[1734847439255,24.21160043,180.24,180.14,1.6819]
[1734847439460,24.21160043,180.24,180.15,3.36]
[1734847440450,24.21160043,180.24,180.17,2.7768]
[1734847440647,24.21160043,180.24,180.15,3.36]
[1734847441560,2.7763,180.22,180.16,2.7769]
[1734847442060,2.776,180.23,180.18,2.7767]
[1734847442561,2.7761,180.22,180.18,2.7767]
[1734847443061,2.7761,180.22,180.18,6.1367]
[1734847443861,2.7761,180.22,180.18,2.7767]
[1734847444162,14.91574003,180.25,180.18,3.36]
[1734847444355,14.91574003,180.22,180.09,14.91574003]
[1734847444562,14.91574003,180.22,180.09,1.7417]
[1734847444761,14.91574003,180.22,180.1,3.36]
[1734847445560,2.7766,180.19,180.14,2.7773]
[1734847445760,14.91574003,180.22,180.15,3.36]
[1734847446062,2.7761,180.22,180.18,2.7767]
[1734847446262,2.7761,180.22,180.15,3.36]
[1734847446562,18.27574003,180.25,180.15,3.36]
[1734847446761,2.7765,180.2,180.16,2.777]
[1734847446957,2.7765,180.2,180.15,3.36]
[1734847447661,18.27574003,180.25,180.15,3.36]
[1734847448759,2.7761,180.22,180.15,3.36]
[1734847448960,18.27574003,180.25,180.15,3.36]
[1734847449161,2.7762,180.22,180.18,2.7767]
[1734847449356,2.7762,180.22,180.15,3.36]
[1734847450262,2.7762,180.22,180.17,2.7769]
[1734847454359,14.91574003,180.25,180.17,2.7769]
[1734847454663,2.7764,180.21,180.17,2.7769]
[1734847455759,14.91574003,180.25,180.15,3.36]
[1734847455963,1.6234,180.26,180.15,3.36]
[1734847456766,2.7757,180.25,180.15,3.36]
[1734847457169,2.7757,180.25,180.16,1.7107]
[1734847457370,2.7757,180.25,180.18,2.7766]
[1734847457564,2.7757,180.25,180.16,1.7107]
[1734847458571,2.7755,180.26,180.22,2.776]
[1734847459576,1.7677,180.29,180.21,3.36]
[1734847459770,76.36381439,180.34,180.21,3.36]
[1734847459972,39.63035612,180.34,180.21,3.36]
[1734847460271,39.63035612,180.34,180.18,16.55124003]
[1734847460466,14.91574003,180.31,180.19,3.36]
[1734847460974,2.7753,180.28,180.22,2.7761]
[1734847461277,14.91574003,180.31,180.22,2.7761]
[1734847461871,22.96891465,180.31,180.22,2.7761]
[1734847462078,14.91574003,180.31,180.22,2.7761]
[1734847462279,14.91574003,180.31,180.21,2.7763]
[1734847462671,14.91574003,180.31,180.21,6.1363]
[1734847462873,31.21698967,180.31,180.21,6.1363]
[1734847463072,14.91574003,180.31,180.21,6.1363]
[1734847463274,23.58084343,180.31,180.21,6.1363]
[1734847463475,14.91574003,180.31,180.21,3.36]
[1734847463776,2.7752,180.29,180.21,3.36]
[1734847463974,1.77019673,180.32,180.26,2.7755]
[1734847464278,1.77019673,180.32,180.26,3.36]
[1734847464478,2.7749,180.3,180.26,3.36]
[1734847464782,1.77019673,180.32,180.26,3.36]
[1734847465078,2.7746,180.32,180.27,2.7753]
[1734847465776,2.7746,180.32,180.26,3.36]
[1734847465976,4.4845,180.34,180.26,3.36]
[1734847466776,14.91574003,180.31,180.21,1.7251]
[1734847467082,14.91574003,180.31,180.19,3.36]
[1734847467281,2.7755,180.26,180.21,2.7763]
[1734847470372,14.91574003,180.28,180.2,3.36]
[1734847470578,1.6845,180.25,180.19,3.36]
[1734847470778,1.6845,180.25,180.1,3.2816]
[1734847470779,1.6845,180.25,180.18,3.36]
[1734847472484,4.4602,180.25,180.19,2.7766]
[1734847472881,1.6845,180.25,180.19,2.7766]
[1734847473186,2.7758,180.24,180.19,2.7766]
[1734847474284,4.4602,180.25,180.2,2.7764]
[1734847475889,3.372,180.27,180.18,3.36]
[1734847476086,13.1260779,180.33,180.18,3.36]
[1734847476289,16.6349779,180.33,180.18,3.36]
[1734847476490,8.5756,180.33,180.18,3.36]
[1734847476690,5.2156,180.33,180.18,3.36]
[1734847477091,2.7751,180.29,180.18,3.36]
[1734847477487,2.7749,180.3,180.25,2.7756]
[1734847477688,2.7749,180.3,180.25,6.1356]
[1734847478091,2.7746,180.32,180.25,3.36]
[1734847478595,1.7342,180.33,180.29,2.775]
[1734847478795,2.7744,180.34,180.3,3.36]